fUST/lending_fUST_20250809
["ID","MTS","AMOUNT","RATE_DAILY","PERIOD"]
[378066762,1754716254175,-350.0,0.00023568,2]
[378066765,1754716254185,-501.83906,0.00023568,2]
[378066766,1754716254196,-1500.0,0.00023568,2]
[378066768,1754716254205,-1500.0,0.00023568,2]
[378066770,1754716254215,-502.57253159,0.00023568,2]
[378066772,1754716254224,-1500.0,0.00023568,2]
[378066773,1754716254234,-507.53751155,0.00023568,2]
[378066774,1754716254243,-4746.67650766,0.00023583,2]
[378066775,1754716254253,-260.0,0.00023587,2]
[378066776,1754716254262,-151.0,0.000236,7]
[378066777,1754716254272,-250.0,0.00023621,2]
[378066778,1754716254281,-151.0,0.000237,9]
[378066779,1754716254290,-251.0,0.00023767,2]
[378066780,1754716254300,-151.0,0.000238,10]
[378066781,1754716254310,-1214.0,0.00023817,2]
[378066782,1754716254320,-420.0,0.00023817,2]
[378066783,1754716254330,-420.0,0.00023817,2]
[378066784,1754716254339,-420.0,0.00023817,2]
[378066785,1754716254348,-1837.27,0.00023834,2]
[378066786,1754716254358,-796.65,0.00023834,2]
[378066788,1754716254367,-460.0,0.00023834,2]
[378066790,1754716254376,-2104.15,0.00023834,2]
[378066792,1754716254385,-151.0,0.00023835,7]
[378066794,1754716254395,-151.0,0.00023835,7]
[378066796,1754716254405,-151.0,0.00023835,7]
[378066798,1754716254414,-460.0,0.00023835,2]
[378066800,1754716254423,-460.0,0.00023835,2]
[378066802,1754716254433,-460.0,0.00023835,2]
[378066804,1754716254442,-460.0,0.00023835,2]
[378066806,1754716254451,-460.0,0.00023835,2]
[378066808,1754716254461,-460.0,0.00023835,2]
[378066810,1754716254470,-579.98,0.00023835,2]
[378066812,1754716254479,-460.0,0.00023835,2]
[378066814,1754716254489,-472.0,0.00023835,2]
[378066816,1754716254498,-562.43,0.00023835,2]
[378066818,1754716254508,-460.0,0.00023835,2]
[378066820,1754716254518,-460.0,0.00023835,2]
[378066822,1754716254527,-460.0,0.00023835,2]
[378066824,1754716254539,-460.0,0.00023835,2]
[378066826,1754716254548,-460.0,0.00023835,2]
[378066828,1754716254557,-460.0,0.00023835,2]
[378066830,1754716254566,-200.03954777,0.00023835,2]
[378066832,1754716254576,-460.0,0.00023835,2]
[378066834,1754716254589,-417.43093737,0.00023835,2]
[378066836,1754716254599,-585.92,0.00023835,2]
[378066838,1754716254608,-460.0,0.00023835,2]
[378066840,1754716254618,-460.0,0.00023835,2]
[378066842,1754716254628,-460.0,0.00023835,2]
[378066844,1754716254637,-460.0,0.00023835,2]
[378066846,1754716254646,-737.74,0.00023835,2]
[378066848,1754716254656,-1186.16,0.00023835,2]
[378066850,1754716254665,-460.0,0.00023835,2]
[378066852,1754716254675,-844.33,0.00023835,2]
[378066854,1754716254685,-460.0,0.00023835,2]
[378066856,1754716254694,-5779.76,0.00023835,2]
[378066858,1754716254703,-366.81371358,0.00023835,2]
[378066860,1754716254713,-460.0,0.00023835,2]
[378066862,1754716254723,-460.0,0.00023835,2]
[378066864,1754716254732,-1359.95,0.00023835,2]
[378066866,1754716254741,-677.65,0.00023835,2]
[378066868,1754716254751,-673.74,0.00023835,2]
[378066870,1754716254760,-460.0,0.00023835,2]
[378066872,1754716254769,-460.0,0.00023835,2]
[378066874,1754716254778,-1248.09,0.00023835,2]
[378066876,1754716254788,-2614.39,0.00023835,2]
[378066878,1754716254797,-1565.54,0.00023835,2]
[378066880,1754716254807,-805.41,0.00023835,2]
[378066882,1754716254819,-720.99,0.00023835,2]
[378066884,1754716254829,-460.0,0.00023835,2]
[378066886,1754716254838,-460.0,0.00023835,2]
[378066888,1754716254848,-460.0,0.00023835,2]
[378066890,1754716254858,-2540.53,0.00023835,2]
[378066892,1754716254868,-2680.87,0.00023835,2]
[378066894,1754716254878,-460.0,0.00023835,2]
[378066896,1754716254888,-626.96,0.00023835,2]
[378066898,1754716254897,-1055.29,0.00023835,2]
[378066900,1754716254907,-831.45,0.00023835,2]
[378066902,1754716254928,-236.5627385,0.00023835,2]
[378066904,1754716254949,-531.14,0.00023835,2]
[378066906,1754716254964,-460.0,0.00023835,2]
[378066908,1754716254975,-1352.54,0.00023835,2]
[378066920,1754716255073,-460.0,0.00023835,2]
[378066922,1754716255083,-484.51,0.00023835,2]
[378066924,1754716255092,-616.96,0.00023835,2]
[378066926,1754716255102,-460.0,0.00023835,2]
[378066928,1754716255111,-878.7,0.00023835,2]
[378066930,1754716255123,-460.0,0.00023835,2]
[378066932,1754716255132,-588.03,0.00023835,2]
[378066934,1754716255141,-2205.74,0.00023835,2]
[378066936,1754716255150,-460.0,0.00023835,2]
[378066938,1754716255161,-812.53,0.00023835,2]
[378066940,1754716255170,-627.1,0.00023835,2]
[378066942,1754716255180,-460.0,0.00023835,2]
[378066944,1754716255190,-502.96,0.00023835,2]
[378066946,1754716255200,-460.0,0.00023835,2]
[378066948,1754716255210,-1473.86,0.00023835,2]
[378066950,1754716255219,-1466.73,0.00023835,2]
[378066952,1754716255229,-734.31,0.00023835,2]
[378066954,1754716255238,-584.11,0.00023835,2]
[378066956,1754716255247,-460.0,0.00023835,2]
[378066958,1754716255257,-460.0,0.00023835,2]
[378066960,1754716255267,-460.0,0.00023835,2]
[378066962,1754716255277,-1086.66,0.00023835,2]
[378066964,1754716255286,-1230.88,0.00023835,2]
[378066966,1754716255296,-460.0,0.00023835,2]
[378066968,1754716255305,-460.0,0.00023835,2]
[378066970,1754716255318,-460.0,0.00023835,2]
[378066972,1754716255328,-1364.78,0.00023835,2]
[378066974,1754716255338,-460.0,0.00023835,2]
[378066976,1754716255347,-740.11,0.00023835,2]
[378066978,1754716255357,-460.0,0.00023835,2]
[378066980,1754716255366,-1560.26,0.00023835,2]
[378066982,1754716255376,-460.0,0.00023835,2]
[378066984,1754716255386,-460.0,0.00023835,2]
[378066986,1754716255395,-1863.28,0.00023835,2]
[378066988,1754716255405,-560.11,0.00023835,2]
[378066990,1754716255415,-619.47,0.00023835,2]
[378066992,1754716255424,-3886.89,0.00023835,2]
[378066994,1754716255434,-972.03,0.00023835,2]
[378066996,1754716255444,-460.0,0.00023835,2]
[378066998,1754716255453,-460.0,0.00023835,2]
[378067000,1754716255463,-460.0,0.00023835,2]
[378067002,1754716255472,-460.0,0.00023835,2]
[378067004,1754716255481,-461.6,0.00023835,2]
[378067006,1754716255491,-460.0,0.00023835,2]
[378067008,1754716255500,-440.65131175,0.00023868,2]
[378067010,1754716255510,-501.64750758,0.00023868,2]
[378067012,1754716255520,-1500.0,0.00023868,2]
[378067014,1754716255530,-1106.44966451,0.00023868,2]
[378067016,1754716255540,-501.64131963,0.00023868,2]
[378067018,1754716255550,-1016.1618568,0.00023868,2]
[378067020,1754716255560,-501.97502455,0.00023868,2]
[378067022,1754716255569,-151.0,0.000239,8]
[378067024,1754716255591,-151.0,0.000239,6]
[378067026,1754716255603,-251.0,0.00023919,2]
[378067028,1754716255612,-1680.0,0.00023929,2]
[378067030,1754716255622,-160.118391,0.00023973,2]
[378067032,1754716255631,-251.0,0.00023979,2]
[378067034,1754716255640,-179.36013227,0.00024,2]
[378067036,1754716255649,-151.788045,0.00024,14]
[378067038,1754716255659,-3447.31999276,0.0002405,2]
[378067040,1754716255669,-2249.35253173,0.0002405,2]
[378067042,1754716255678,-151.0,0.00024068,7]
[378067044,1754716255688,-151.0,0.00024068,7]
[378067046,1754716255697,-323.985552,0.00024068,7]
[378067048,1754716255706,-323.985552,0.00024068,7]
[378067050,1754716255715,-1500.0,0.00024068,2]
[378067052,1754716255724,-1500.0,0.00024068,2]
[378067054,1754716255734,-1500.0,0.00024068,2]
[378067056,1754716255743,-168.0,0.00024074,2]
[378067058,1754716255753,-151.0,0.000241,5]
[378067060,1754716255762,-1837.27,0.00024108,2]
[378067062,1754716255772,-796.65,0.00024108,2]
[378067065,1754716255782,-2104.15,0.00024108,2]
[378067067,1754716255791,-153.55203,0.00024109,7]
[378067069,1754716255801,-460.0,0.00024109,2]
[378067071,1754716255812,-151.0,0.00024109,7]
[378067073,1754716255821,-151.0,0.00024109,7]
[378067074,1754716255831,-151.0,0.00024109,7]
[378067077,1754716255840,-151.0,0.00024109,7]
[378067079,1754716255850,-151.0,0.00024109,7]
[378067081,1754716255860,-460.0,0.00024109,2]
[378067083,1754716255874,-460.0,0.00024109,2]
[378067085,1754716255883,-152.65404,0.00024109,7]
[378067086,1754716255893,-460.0,0.00024109,2]
[378067089,1754716255902,-460.0,0.00024109,2]
[378067090,1754716255912,-151.0,0.00024109,7]
[378067092,1754716255922,-151.0,0.00024109,7]
[378067095,1754716255931,-151.0,0.00024109,7]
[378067097,1754716255940,-460.0,0.00024109,2]
[378067098,1754716255950,-579.98,0.00024109,2]
[378067100,1754716255959,-460.0,0.00024109,2]
[378067102,1754716255968,-319.058462,0.00024109,7]
[378067104,1754716255977,-319.058462,0.00024109,7]
[378067106,1754716255986,-472.0,0.00024109,2]
[378067108,1754716255995,-562.43,0.00024109,2]
[378067110,1754716256004,-460.0,0.00024109,2]
[378067112,1754716256013,-460.0,0.00024109,2]
[378067114,1754716256023,-460.0,0.00024109,2]
[378067116,1754716256032,-460.0,0.00024109,2]
[378067118,1754716256042,-460.0,0.00024109,2]
[378067121,1754716256051,-151.0,0.00024109,7]
[378067122,1754716256062,-460.0,0.00024109,2]
[378067125,1754716256072,-460.0,0.00024109,2]
[378067126,1754716256081,-585.92,0.00024109,2]
[378067129,1754716256090,-460.0,0.00024109,2]
[378067131,1754716256100,-151.0,0.00024109,7]
[378067132,1754716256110,-460.0,0.00024109,2]
[378067135,1754716256123,-460.0,0.00024109,2]
[378067137,1754716256133,-460.0,0.00024109,2]
[378067139,1754716256142,-737.74,0.00024109,2]
[378067141,1754716256151,-1186.16,0.00024109,2]
[378067142,1754716256162,-153.454116,0.00024109,7]
[378067145,1754716256173,-460.0,0.00024109,2]
[378067146,1754716256182,-844.33,0.00024109,2]
[378067149,1754716256191,-460.0,0.00024109,2]
[378067150,1754716256201,-5779.76,0.00024109,2]
[378067152,1754716256210,-460.0,0.00024109,2]
[378067154,1754716256219,-460.0,0.00024109,2]
[378067157,1754716256229,-1359.95,0.00024109,2]
[378067158,1754716256239,-677.65,0.00024109,2]
[378067161,1754716256248,-673.74,0.00024109,2]
[378067163,1754716256257,-460.0,0.00024109,2]
[378067164,1754716256266,-460.0,0.00024109,2]
[378067166,1754716256275,-216.61183532,0.00024109,7]
[378067169,1754716256286,-1248.09,0.00024109,2]
[378067171,1754716256296,-2614.39,0.00024109,2]
[378067172,1754716256305,-1565.54,0.00024109,2]
[378067175,1754716256316,-312.16666667,0.00024109,7]
[378067177,1754716256326,-805.41,0.00024109,2]
[378067179,1754716256335,-720.99,0.00024109,2]
[378067180,1754716256344,-160.0,0.00024109,7]
[378067182,1754716256354,-460.0,0.00024109,2]
[378067183,1754716256364,-460.0,0.00024109,2]
[378067184,1754716256373,-151.0,0.00024109,7]
[378067185,1754716256383,-151.0,0.00024109,7]
[378067186,1754716256392,-460.0,0.00024109,2]
[378067187,1754716256402,-2540.53,0.00024109,2]
[378067188,1754716256412,-460.0,0.00024109,2]
[378067189,1754716256421,-2680.87,0.00024109,2]
[378067190,1754716256430,-626.96,0.00024109,2]
[378067191,1754716256439,-1055.29,0.00024109,2]
[378067192,1754716256448,-831.45,0.00024109,2]
[378067193,1754716256458,-531.14,0.00024109,2]
[378067194,1754716256467,-460.0,0.00024109,2]
[378067195,1754716256476,-151.0,0.00024109,7]
[378067196,1754716256485,-1352.54,0.00024109,2]
[378067197,1754716256494,-460.0,0.00024109,2]
[378067199,1754716256503,-484.51,0.00024109,2]
[378067210,1754716256593,-616.96,0.00024109,2]
[378067212,1754716256603,-460.0,0.00024109,2]
[378067214,1754716256612,-878.7,0.00024109,2]
[378067216,1754716256622,-460.0,0.00024109,2]
[378067218,1754716256631,-588.03,0.00024109,2]
[378067220,1754716256640,-160.0,0.00024109,7]
[378067221,1754716256650,-152.279808,0.00024109,7]
[378067223,1754716256667,-2205.74,0.00024109,2]
[378067225,1754716256677,-460.0,0.00024109,2]
[378067228,1754716256686,-812.53,0.00024109,2]
[378067229,1754716256695,-627.1,0.00024109,2]
[378067231,1754716256704,-211.383814,0.00024109,7]
[378067233,1754716256714,-370.01728332,0.00024109,2]
[378067235,1754716256723,-461.55179734,0.00024109,7]
[378067237,1754716256732,-211.383814,0.00024109,7]
[378067240,1754716256742,-502.96,0.00024109,2]
[378067242,1754716256751,-460.0,0.00024109,2]
[378067243,1754716256761,-1473.86,0.00024109,2]
[378067246,1754716256771,-1466.73,0.00024109,2]
[378067247,1754716256782,-734.31,0.00024109,2]
[378067249,1754716256791,-584.11,0.00024109,2]
[378067252,1754716256801,-460.0,0.00024109,2]
[378067253,1754716256812,-460.0,0.00024109,2]
[378067255,1754716256822,-460.0,0.00024109,2]
[378067257,1754716256832,-215.40758176,0.00024109,7]
[378067260,1754716256842,-160.0,0.00024109,7]
[378067261,1754716256851,-1086.66,0.00024109,2]
[378067263,1754716256860,-1230.88,0.00024109,2]
[378067266,1754716256870,-460.0,0.00024109,2]
[378067267,1754716256879,-460.0,0.00024109,2]
[378067269,1754716256889,-460.0,0.00024109,2]
[378067272,1754716256899,-1364.78,0.00024109,2]
[378067274,1754716256908,-460.0,0.00024109,2]
[378067275,1754716256918,-740.11,0.00024109,2]
[378067278,1754716256927,-238.25475169,0.00024109,2]
[378067279,1754716256937,-1560.26,0.00024109,2]
[378067282,1754716256946,-460.0,0.00024109,2]
[378067283,1754716256956,-487.10669741,0.00024109,2]
[378067285,1754716256965,-1863.28,0.00024109,2]
[378067287,1754716256975,-560.11,0.00024109,2]
[378067290,1754716256984,-619.47,0.00024109,2]
[378067292,1754716256994,-3886.89,0.00024109,2]
[378067293,1754716257003,-972.03,0.00024109,2]
[378067295,1754716257013,-460.0,0.00024109,2]
[378067298,1754716257023,-160.0,0.00024109,7]
[378067299,1754716257032,-460.0,0.00024109,2]
[378067301,1754716257042,-460.0,0.00024109,2]
[378067303,1754716257051,-460.0,0.00024109,2]
[378067305,1754716257063,-461.6,0.00024109,2]
[378067307,1754716257072,-156.79931915,0.00024109,2]
[378067310,1754716257082,-150.0,0.00024113,2]
[378067312,1754716257091,-1544.22035058,0.00024116,2]
[378067313,1754716257101,-450.0,0.00024116,2]
[378067316,1754716257110,-2000.0,0.00024116,2]
[378067317,1754716257122,-656.38657788,0.00024116,2]
[378067319,1754716257131,-2000.0,0.00024116,2]
[378067322,1754716257142,-360.0,0.00024135,2]
[378067324,1754716257151,-350.0,0.00024168,2]
[378067326,1754716257160,-151.0,0.000242,9]
[378067328,1754716257170,-168.0,0.00024236,2]
[378067330,1754716257179,-168.0,0.00024257,2]
[378067332,1754716257188,-15000.0,0.000243,5]
[378067334,1754716257199,-151.0,0.000243,8]
[378067335,1754716257208,-152.081913,0.000243,7]
[378067338,1754716257217,-151.0,0.000243,7]
[378067339,1754716257226,-151.0,0.000243,7]
[378067341,1754716257236,-223.993383,0.000243,7]
[378067343,1754716257245,-223.993383,0.000243,7]
[378067346,1754716257254,-151.0,0.000243,7]
[378067348,1754716257263,-151.0,0.000243,7]
[378067350,1754716257273,-151.0,0.000243,7]
[378067351,1754716257282,-151.0,0.000243,7]
[378067353,1754716257291,-948.97252,0.000243,7]
[378067355,1754716257301,-948.97252,0.000243,7]
[378067358,1754716257313,-168.0,0.0002435,2]
[378067360,1754716257323,-168.0,0.00024368,2]
[378067361,1754716257332,-168.0,0.00024372,2]
[378067363,1754716257342,-1837.27,0.00024382,2]
[378067366,1754716257351,-796.65,0.00024382,2]
[378067368,1754716257362,-2104.15,0.00024382,2]
[378067370,1754716257371,-151.0,0.00024383,7]
[378067371,1754716257380,-151.0,0.00024383,7]
[378067374,1754716257390,-151.0,0.00024383,7]
[378067375,1754716257399,-460.0,0.00024383,2]
[378067377,1754716257408,-366.62,0.00024383,2]
[378067378,1754716257418,-460.0,0.00024383,2]
[378067380,1754716257427,-460.0,0.00024383,2]
[378067381,1754716257436,-460.0,0.00024383,2]
[378067383,1754716257446,-460.0,0.00024383,2]
[378067384,1754716257455,-579.98,0.00024383,2]
[378067386,1754716257465,-460.0,0.00024383,2]
[378067387,1754716257474,-472.0,0.00024383,2]
[378067389,1754716257484,-562.43,0.00024383,2]
[378067391,1754716257493,-460.0,0.00024383,2]
[378067392,1754716257503,-326.56433137,0.00024383,2]
[378067394,1754716257512,-460.0,0.00024383,2]
[378067395,1754716257522,-479.49762853,0.00024383,2]
[378067397,1754716257532,-460.0,0.00024383,2]
[378067398,1754716257541,-460.0,0.00024383,2]
[378067400,1754716257551,-585.92,0.00024383,2]
[378067401,1754716257563,-460.0,0.00024383,2]
[378067403,1754716257572,-460.0,0.00024383,2]
[378067404,1754716257582,-460.0,0.00024383,2]
[378067406,1754716257591,-160.0,0.00024383,7]
[378067407,1754716257600,-737.74,0.00024383,2]
[378067409,1754716257610,-1186.16,0.00024383,2]
[378067411,1754716257619,-460.0,0.00024383,2]
[378067412,1754716257628,-842.95011917,0.00024383,7]
[378067414,1754716257638,-844.33,0.00024383,2]
[378067415,1754716257647,-460.0,0.00024383,2]
[378067417,1754716257656,-5779.76,0.00024383,2]
[378067419,1754716257667,-460.0,0.00024383,2]
[378067420,1754716257676,-460.0,0.00024383,2]
[378067422,1754716257686,-1359.95,0.00024383,2]
[378067424,1754716257695,-677.65,0.00024383,2]
[378067425,1754716257705,-673.74,0.00024383,2]
[378067427,1754716257714,-460.0,0.00024383,2]
[378067429,1754716257723,-1248.09,0.00024383,2]
[378067430,1754716257733,-2614.39,0.00024383,2]
[378067432,1754716257742,-1565.54,0.00024383,2]
[378067434,1754716257751,-805.41,0.00024383,2]
[378067435,1754716257760,-720.99,0.00024383,2]
[378067437,1754716257770,-170.81714969,0.00024383,2]
[378067439,1754716257779,-460.0,0.00024383,2]
[378067440,1754716257789,-460.0,0.00024383,2]
[378067442,1754716257798,-2540.53,0.00024383,2]
[378067443,1754716257807,-460.0,0.00024383,2]
[378067445,1754716257818,-2680.87,0.00024383,2]
[378067447,1754716257826,-626.96,0.00024383,2]
[378067448,1754716257836,-1055.29,0.00024383,2]
[378067450,1754716257845,-831.45,0.00024383,2]
[378067452,1754716257856,-531.14,0.00024383,2]
[378067453,1754716257865,-460.0,0.00024383,2]
[378067455,1754716257875,-1352.54,0.00024383,2]
[378067457,1754716257884,-460.0,0.00024383,2]
[378067458,1754716257894,-616.96,0.00024383,2]
[378067464,1754716257964,-484.51,0.00024383,2]
[378067466,1754716257980,-460.0,0.00024383,2]
[378067468,1754716257989,-878.7,0.00024383,2]
[378067469,1754716257998,-460.0,0.00024383,2]
[378067471,1754716258008,-588.03,0.00024383,2]
[378067473,1754716258017,-2205.74,0.00024383,2]
[378067474,1754716258027,-460.0,0.00024383,2]
[378067476,1754716258037,-812.53,0.00024383,2]
[378067478,1754716258046,-627.1,0.00024383,2]
[378067479,1754716258056,-502.96,0.00024383,2]
[378067481,1754716258067,-460.0,0.00024383,2]
[378067483,1754716258076,-1473.86,0.00024383,2]
[378067484,1754716258086,-1466.73,0.00024383,2]
[378067486,1754716258095,-734.31,0.00024383,2]
[378067488,1754716258105,-584.11,0.00024383,2]
[378067489,1754716258116,-460.0,0.00024383,2]
[378067491,1754716258129,-460.0,0.00024383,2]
[378067493,1754716258139,-460.0,0.00024383,2]
[378067494,1754716258148,-1086.66,0.00024383,2]
[378067496,1754716258158,-1230.88,0.00024383,2]
[378067498,1754716258169,-460.0,0.00024383,2]
[378067499,1754716258178,-460.0,0.00024383,2]
[378067501,1754716258187,-460.0,0.00024383,2]
[378067503,1754716258197,-1364.78,0.00024383,2]
[378067504,1754716258207,-460.0,0.00024383,2]
[378067506,1754716258216,-740.11,0.00024383,2]
[378067508,1754716258226,-1560.26,0.00024383,2]
[378067509,1754716258235,-460.0,0.00024383,2]
[378067511,1754716258245,-1863.28,0.00024383,2]
[378067513,1754716258254,-560.11,0.00024383,2]
[378067514,1754716258263,-619.47,0.00024383,2]
[378067516,1754716258272,-3886.89,0.00024383,2]
[378067518,1754716258282,-972.03,0.00024383,2]
[378067519,1754716258291,-460.0,0.00024383,2]
[378067521,1754716258300,-460.0,0.00024383,2]
[378067523,1754716258310,-460.0,0.00024383,2]
[378067524,1754716258319,-461.6,0.00024383,2]
[378067526,1754716258329,-151.0,0.000244,5]
[378067527,1754716258339,-2000.0,0.00024416,2]
[378067529,1754716258349,-779.97,0.00024424,2]
[378067531,1754716258358,-168.0,0.00024486,2]
[378067532,1754716258367,-2200.0,0.00024516,2]
[378067534,1754716258376,-813.971,0.00024516,2]
[378067536,1754716258386,-151.0,0.000246,6]
[378067537,1754716258395,-151.0,0.00024616,7]
[378067539,1754716258404,-151.0,0.00024616,7]
[378067541,1754716258414,-323.985552,0.00024616,7]
[378067542,1754716258424,-323.985552,0.00024616,7]
[378067544,1754716258433,-2000.0,0.00024616,2]
[378067546,1754716258443,-252.95218013,0.00024616,2]
[378067547,1754716258452,-2000.0,0.00024616,2]
[378067549,1754716258461,-20618.00120384,0.0002465,2]
[378067551,1754716258470,-153.824787,0.0002465,7]
[378067552,1754716258478,-1837.27,0.00024656,2]
[378067554,1754716258487,-796.65,0.00024656,2]
[378067555,1754716258497,-2104.15,0.00024656,2]
[378067557,1754716258506,-251.0,0.00024657,2]
[378067559,1754716258515,-355.34370016,0.00024657,2]
[378067560,1754716258524,-151.0,0.00024657,7]
[378067562,1754716258533,-151.0,0.00024657,7]
[378067564,1754716258542,-249.86515446,0.00024657,2]
[378067565,1754716258552,-460.0,0.00024657,2]
[378067567,1754716258563,-460.0,0.00024657,2]
[378067569,1754716258575,-151.0,0.00024657,7]
[378067570,1754716258584,-460.0,0.00024657,2]
[378067572,1754716258593,-579.98,0.00024657,2]
[378067573,1754716258603,-460.0,0.00024657,2]
[378067575,1754716258612,-319.058462,0.00024657,7]
[378067577,1754716258622,-319.058462,0.00024657,7]
[378067578,1754716258631,-472.0,0.00024657,2]
[378067580,1754716258640,-562.43,0.00024657,2]
[378067582,1754716258649,-460.0,0.00024657,2]
[378067583,1754716258659,-460.0,0.00024657,2]
[378067585,1754716258669,-460.0,0.00024657,2]
[378067587,1754716258678,-460.0,0.00024657,2]
[378067589,1754716258687,-585.92,0.00024657,2]
[378067591,1754716258696,-524.71158442,0.00024657,2]
[378067592,1754716258705,-208.585868,0.00024657,7]
[378067594,1754716258714,-460.0,0.00024657,2]
[378067597,1754716258725,-460.0,0.00024657,2]
[378067599,1754716258734,-737.74,0.00024657,2]
[378067601,1754716258744,-1186.16,0.00024657,2]
[378067603,1754716258753,-460.0,0.00024657,2]
[378067605,1754716258762,-844.33,0.00024657,2]
[378067607,1754716258771,-460.0,0.00024657,2]
[378067608,1754716258780,-5779.76,0.00024657,2]
[378067609,1754716258789,-460.0,0.00024657,2]
[378067610,1754716258798,-460.0,0.00024657,2]
[378067611,1754716258808,-1359.95,0.00024657,2]
[378067612,1754716258819,-677.65,0.00024657,2]
[378067613,1754716258829,-673.74,0.00024657,2]
[378067614,1754716258838,-460.0,0.00024657,2]
[378067615,1754716258847,-1248.09,0.00024657,2]
[378067616,1754716258856,-2614.39,0.00024657,2]
[378067617,1754716258865,-1565.54,0.00024657,2]
[378067618,1754716258874,-805.41,0.00024657,2]
[378067619,1754716258883,-720.99,0.00024657,2]
[378067620,1754716258892,-511.94073108,0.00024657,2]
[378067621,1754716258902,-460.0,0.00024657,2]
[378067622,1754716258911,-2540.53,0.00024657,2]
[378067623,1754716258920,-460.0,0.00024657,2]
[378067624,1754716258929,-2680.87,0.00024657,2]
[378067625,1754716258939,-1055.29,0.00024657,2]
[378067626,1754716258948,-626.96,0.00024657,2]
[378067627,1754716258957,-831.45,0.00024657,2]
[378067628,1754716258967,-531.14,0.00024657,2]
[378067629,1754716258976,-1352.54,0.00024657,2]
[378067630,1754716258985,-460.0,0.00024657,2]
[378067631,1754716258995,-460.0,0.00024657,2]
[378067632,1754716259004,-616.96,0.00024657,2]
[378067633,1754716259014,-484.51,0.00024657,2]
[378067634,1754716259023,-460.0,0.00024657,2]
[378067636,1754716259033,-878.7,0.00024657,2]
[378067637,1754716259042,-460.0,0.00024657,2]
[378067638,1754716259051,-588.03,0.00024657,2]
[378067640,1754716259062,-2205.74,0.00024657,2]
[378067642,1754716259071,-460.0,0.00024657,2]
[378067644,1754716259080,-812.53,0.00024657,2]
[378067646,1754716259088,-627.1,0.00024657,2]
[378067648,1754716259097,-502.96,0.00024657,2]
[378067650,1754716259106,-460.0,0.00024657,2]
[378067652,1754716259116,-1473.86,0.00024657,2]
[378067654,1754716259129,-734.31,0.00024657,2]
[378067656,1754716259138,-1466.73,0.00024657,2]
[378067658,1754716259147,-584.11,0.00024657,2]
[378067660,1754716259156,-460.0,0.00024657,2]
[378067669,1754716259234,-460.0,0.00024657,2]
[378067671,1754716259244,-460.0,0.00024657,2]
[378067673,1754716259254,-1086.66,0.00024657,2]
[378067676,1754716259263,-1230.88,0.00024657,2]
[378067678,1754716259272,-460.0,0.00024657,2]
[378067680,1754716259282,-485.50622539,0.00024657,2]
[378067682,1754716259291,-496.11,0.00024657,2]
[378067684,1754716259301,-1364.78,0.00024657,2]
[378067686,1754716259312,-460.0,0.00024657,2]